bitfinex/quotes_ETHUSD_20250930
["timestamp","ask_amount","ask_price","bid_price","bid_amount"]
[1759232579518,15.06390475,4174.8,4174.6,0.002]
[1759232580941,4.7953817,4174.7,4174.6,1e-08]
[1759232581150,5.5873817,4174.7,4174.6,1e-08]
[1759232581347,5.5873817,4174.7,4174.3,0.002]
[1759232581348,10.21293829,4174.4,4174.3,0.002]
[1759232581665,13.13293829,4174.4,4174.3,0.002]
[1759232581964,13.80433829,4174.4,4174.3,0.002]
[1759232582865,4.79561124,4174.3,4174.2,0.002]
[1759232583062,5.22511124,4174.3,4174.2,0.002]
[1759232583229,6.73173526,4174.3,4174.2,0.002]
[1759232587927,6.30223526,4174.3,4174.2,0.002]
[1759232589575,3.77837566,4174.8,4174.2,0.002]
[1759232589576,0.12225535,4174.8,4174.2,0.002]
[1759232589735,0.51474674,4176.4,4174.4,2.4]
[1759232589932,0.4338,4176.5,4174.9,0.792]
[1759232590156,2.39414188,4176.9,4175.6,2.39485346]
[1759232590157,2.846,4176.9,4175.6,2.39485346]
[1759232590357,2.39417736,4176.8,4175.6,2.39485346]
[1759232590534,5.23917736,4176.8,4175.7,2.91649275]
[1759232590735,5.23917736,4176.8,4175.9,2.39466297]
[1759232590936,2.39423991,4176.7,4176.0,0.5217]
[1759232591174,2.39423991,4176.7,4176.1,0.0879]
[1759232591379,2.394314,4176.6,4176.1,0.0879]
[1759232591758,2.394314,4176.6,4176.2,0.4338]
[1759232591954,1.54508214,4176.6,4176.2,0.4338]
[1759232592265,6.78242239,4176.6,4176.3,0.4693]
[1759232592446,5.23734025,4176.6,4176.3,0.4693]
[1759232592646,5.23734025,4176.6,4176.4,0.4693]
[1759232592868,2.39434933,4176.5,4176.4,0.4693]
[1759232593455,2.843,4176.6,4176.1,0.0879]
[1759232593660,4.79430869,4176.6,4176.4,0.4693]
[1759232593860,4.79430869,4176.6,4176.5,0.4693]
[1759232594681,5.79735204,4176.6,4175.8,0.4693]
[1759232594887,5.79735204,4176.6,4175.9,0.0879]
[1759232594888,2.39434933,4176.5,4175.9,0.0879]
[1759232595179,2.39434933,4176.5,4176.0,0.4693]
[1759232595480,2.39434933,4176.5,4176.1,0.0879]
[1759232596051,2.39434933,4176.5,4176.2,0.4693]
[1759232596263,2.401,4176.6,4175.5,2.394883]
[1759232596479,4.79529785,4176.6,4175.9,0.466]
[1759232596706,2.39444634,4176.4,4175.9,0.466]
[1759232596888,2.39446537,4176.3,4175.9,0.466]
[1759232597195,2.39439773,4176.5,4176.0,0.466]
[1759232597405,2.39434933,4176.5,4176.0,0.466]
[1759232597595,2.39434933,4176.5,4176.1,0.466]
[1759232597984,2.401,4176.6,4176.1,0.466]
[1759232597985,2.39441219,4176.4,4176.1,0.466]
[1759232598186,2.39446764,4176.3,4176.1,0.466]
[1759232598383,2.39453428,4176.2,4175.5,0.466]
[1759232598709,2.39447819,4176.3,4175.6,0.0879]
[1759232598910,2.39447819,4176.3,4175.7,0.466]
[1759232599082,2.39452703,4176.2,4175.7,0.466]
[1759232599670,0.12,4175.8,4175.5,2.97339557]
[1759232599927,0.12,4175.8,4175.7,0.0879]
[1759232600099,0.12,4175.8,4175.7,0.5539]
[1759232605517,0.12,4175.8,4175.7,0.466]
[1759232606888,0.12,4175.8,4175.7,0.5539]
[1759232607705,0.12,4175.8,4175.7,0.466]
[1759232608111,0.12,4175.8,4175.7,0.5539]
[1759232608720,0.12,4175.8,4175.7,1.13157518]
[1759232609523,0.12,4175.8,4175.7,1.04367518]
[1759232610522,0.12,4175.8,4175.7,3.43848323]
[1759232610825,2.39438923,4176.5,4175.8,2.39470649]
[1759232611027,0.12,4176.0,4175.9,0.466]
[1759232611624,0.12,4176.0,4175.9,3.45520591]
[1759232611926,0.12,4176.0,4175.9,1.14841256]
[1759232612115,0.12,4176.0,4175.9,14.966]
[1759232612427,0.12,4176.0,4175.9,14.5]
[1759232612726,0.12,4176.0,4175.9,17.321]
[1759232613023,0.12,4176.0,4175.9,17.787]
[1759232613526,0.12,4176.0,4175.9,17.321]
[1759232614613,0.12,4176.0,4175.9,14.5]
[1759232615022,0.12,4176.0,4175.9,17.319]
[1759232615607,0.121,4176.0,4175.9,17.785]
[1759232616130,0.121,4176.0,4175.9,19.86973633]
[1759232616530,0.121,4176.0,4175.9,19.95763633]
[1759232616713,0.121,4176.0,4175.9,19.86973633]
[1759232617627,0.121,4176.0,4175.9,22.26442968]
[1759232617824,0.121,4176.0,4175.9,19.86973633]
[1759232619945,0.121,4176.0,4175.9,19.40373633]
[1759232621243,0.121,4176.0,4175.9,17.319]
[1759232621754,0.121,4176.0,4175.9,14.5]
[1759232622260,0.121,4176.0,4175.9,17.312]
[1759232627874,0.121,4176.0,4175.9,14.5]
[1759232628084,0.121,4176.0,4175.9,17.308]
[1759232628648,0.121,4176.0,4175.9,17.306]
[1759232629049,0.3625,4176.0,4175.9,17.306]
[1759232629559,0.121,4176.0,4175.9,14.5]
[1759232629759,0.121,4176.0,4175.9,17.306]
[1759232632083,0.121,4176.0,4175.9,14.5]
[1759232632286,0.121,4176.0,4175.9,17.305]
[1759232635157,0.3625,4176.0,4175.9,17.305]
[1759232635555,0.121,4176.0,4175.9,17.301]
[1759232641301,0.121,4176.0,4175.9,20.14909335]
[1759232641504,0.121,4176.0,4175.9,22.16421264]
[1759232641505,0.001,4176.0,4175.9,22.16421264]
[1759232641704,0.001,4176.0,4175.9,22.25211264]
[1759232642526,0.001,4176.0,4175.9,21.71081264]
[1759232642700,0.001,4176.0,4175.9,17.297]
[1759232644005,0.001,4176.0,4175.9,19.69169335]
[1759232644399,0.001,4176.0,4175.9,20.14509335]
[1759232644891,0.001,4176.0,4175.9,19.69169335]
[1759232645213,0.001,4176.0,4175.9,20.14509335]
[1759232645616,0.001,4176.0,4175.9,22.40807248]
[1759232646923,0.001,4176.0,4175.9,20.01337913]
[1759232647120,0.001,4176.0,4175.9,22.40807248]
[1759232647922,0.001,4176.0,4175.9,20.01337913]
[1759232648322,0.001,4176.0,4175.9,22.40807248]
[1759232649328,0.001,4176.0,4175.9,21.95467248]
[1759232651423,0.001,4176.0,4175.9,19.55997913]
[1759232651834,0.001,4176.0,4175.9,21.95467248]
[1759232655304,0.001,4176.0,4175.9,19.69169335]
[1759232655808,0.001,4176.0,4175.9,17.297]
[1759232656009,0.001,4176.0,4175.9,19.69169335]
[1759232658326,0.001,4176.0,4175.9,17.297]
[1759232658717,0.2387,4176.0,4175.9,17.297]
[1759232659248,0.001,4176.0,4175.9,17.297]
[1759232659952,0.001,4176.0,4175.9,19.69169335]
[1759232660340,0.2387,4176.0,4175.9,19.69169335]
[1759232661049,0.2387,4176.0,4175.9,17.297]
[1759232661940,0.2387,4176.0,4175.9,14.5]
[1759232662133,0.2387,4176.0,4175.9,17.283]
[1759232663152,0.6722,4176.0,4175.9,14.5]
[1759232663452,0.6722,4176.0,4175.9,17.282]
[1759232663946,0.2387,4176.0,4175.9,17.282]
[1759232664149,0.6722,4176.0,4175.9,17.282]
[1759232664350,0.6722,4176.0,4175.9,14.5]
[1759232664552,0.6722,4176.0,4175.9,17.282]
[1759232665333,0.6722,4176.0,4175.9,14.5]
[1759232665533,0.6722,4176.0,4175.9,17.28]
[1759232665755,3.06683601,4176.0,4175.9,14.5]
[1759232665955,6.25332477,4176.0,4175.9,14.5]
[1759232670159,2.39480805,4175.7,4175.6,0.002]
[1759232670456,2.51480805,4175.7,4175.6,0.002]
[1759232670661,3.18600805,4175.7,4175.6,0.002]
[1759232670856,3.28205972,4175.7,4175.6,0.002]
[1759232671062,4.25235158,4175.7,4175.6,0.002]
[1759232671229,4.68585158,4175.7,4175.6,0.002]
[1759232672271,7.08585158,4175.7,4175.6,0.002]
[1759232676454,2.61605167,4175.7,4175.6,0.002]
[1759232676653,2.51480805,4175.7,4175.6,0.4762]
[1759232677159,2.51480805,4175.7,4175.6,0.002]
[1759232677351,3.18600805,4175.7,4175.6,0.002]
[1759232678037,2.75250805,4175.7,4175.6,0.002]
[1759232679452,2.51480805,4175.7,4175.6,0.002]
[1759232679839,3.18600805,4175.7,4175.6,0.002]
[1759232682672,9.26961444,4175.7,4175.6,0.002]
[1759232682877,9.99004525,4175.7,4175.6,0.002]
[1759232684464,9.27844525,4175.7,4175.6,0.002]
[1759232684973,9.50414525,4175.7,4175.6,0.002]
[1759232685273,9.97804525,4175.7,4175.6,0.002]
[1759232691976,9.97904525,4175.7,4175.6,0.002]
[1759232692778,6.85861444,4175.7,4175.6,0.002]
[1759232696858,7.57904525,4175.7,4175.6,0.002]
[1759232701271,12.99523166,4175.7,4175.6,0.002]
[1759232701593,13.51290582,4175.7,4175.6,0.002]
[1759232703403,15.91290582,4175.7,4175.6,0.002]
[1759232708098,15.97425963,4175.7,4175.6,0.002]
[1759232712895,7.81128125,4175.2,4175.1,1e-08]
[1759232713082,12.11158584,4175.2,4175.1,1e-08]
[1759232713280,12.80708584,4175.2,4175.1,1e-08]
[1759232713505,12.90316358,4175.2,4175.1,1e-08]
[1759232717908,12.90237026,4175.2,4175.1,1e-08]
[1759232718108,12.96215415,4175.2,4175.1,1e-08]
[1759232718304,16.15415415,4175.2,4175.1,1e-08]
[1759232720735,2.39532432,4174.8,4174.7,1e-08]
[1759232720934,12.97351073,4174.8,4174.7,1e-08]
[1759232721236,14.19019157,4174.8,4174.7,1e-08]
[1759232721826,15.07829147,4174.8,4174.7,1e-08]
[1759232722836,15.19829147,4174.8,4174.7,1e-08]
[1759232723140,15.86528691,4174.8,4174.7,1e-08]
[1759232724707,2.39566863,4174.2,4174.1,1e-08]
[1759232725033,7.55766863,4174.2,4174.1,1e-08]
[1759232725820,8.01016863,4174.2,4174.1,1e-08]
[1759232726143,8.88037502,4174.2,4174.1,1e-08]
[1759232730224,8.88037502,4174.2,4173.7,0.4545]
[1759232730225,2.39589822,4173.8,4173.7,1e-08]
[1759232730424,10.57408463,4173.8,4173.7,1e-08]
[1759232730630,10.81978463,4173.8,4173.7,1e-08]
[1759232730824,12.65122904,4173.8,4173.7,1e-08]
[1759232732015,12.89692904,4173.8,4173.7,1e-08]
[1759232732215,12.38081506,4173.8,4173.7,1e-08]
[1759232733246,12.13511506,4173.8,4173.7,1e-08]
[1759232734650,12.25511506,4173.8,4173.7,1e-08]
[1759232736946,12.50081506,4173.8,4173.7,1e-08]
[1759232739453,13.01691014,4173.8,4173.7,1e-08]
[1759232740039,12.77121014,4173.8,4173.7,1e-08]
[1759232740555,6.83892865,4173.8,4173.7,0.45250001]
[1759232741153,6.83892865,4173.8,4173.7,1e-08]
[1759232742357,9.94682865,4173.8,4173.7,1e-08]
[1759232742535,10.46302815,4173.8,4173.7,1e-08]
[1759232743544,9.99172815,4173.8,4173.7,1e-08]
[1759232744662,9.99215266,4173.8,4173.7,1e-08]
[1759232746851,10.46345266,4173.8,4173.7,1e-08]
[1759232747871,10.46445266,4173.8,4173.7,1e-08]
[1759232748275,9.99315266,4173.8,4173.7,1e-08]
[1759232750843,10.46445266,4173.8,4173.7,1e-08]
[1759232752558,15.40933907,4173.8,4173.7,1e-08]
[1759232752761,6.99455266,4173.8,4173.7,1e-08]
[1759232753063,8.21929822,4173.8,4173.7,0.54620001]
[1759232753358,8.73592223,4173.8,4173.7,0.54620001]
[1759232755231,8.73592223,4173.8,4173.7,15.04620001]
[1759232756558,5.97392223,4173.8,4173.7,14.50000001]
[1759232756760,8.21929822,4173.8,4173.7,15.04620001]
[1759232757061,8.73592223,4173.8,4173.7,15.04620001]
[1759232757448,8.19552223,4173.8,4173.7,15.04620001]
[1759232757641,7.67889822,4173.8,4173.7,15.04620001]
[1759232757846,8.19552223,4173.8,4173.7,15.04620001]
[1759232758055,14.48052663,4173.8,4173.7,14.95830001]
[1759232758251,14.48052663,4173.8,4173.7,0.45830001]
[1759232758757,14.48052663,4173.8,4173.7,14.95830001]
[1759232758957,12.88078959,4173.8,4173.7,14.95830001]
[1759232761496,12.88078959,4173.8,4173.7,1e-08]
[1759232761664,13.11738959,4173.8,4173.7,1e-08]
[1759232762376,13.83819776,4173.8,4173.7,1e-08]
[1759232763678,14.30949776,4173.8,4173.7,1e-08]
[1759232763841,15.50873017,4173.8,4173.7,1e-08]
[1759232765882,15.2731732,4173.8,4173.7,1e-08]
[1759232766238,15.9810732,4173.8,4173.7,1e-08]
[1759232767254,15.5097732,4173.8,4173.7,1e-08]
[1759232769258,10.58790584,4173.8,4173.7,0.45830001]
[1759232770054,10.58790584,4173.8,4173.7,14.95830001]
[1759232770549,8.19656526,4173.8,4173.7,15.04620001]
[1759232770754,7.67889822,4173.8,4173.7,15.04620001]
[1759232771085,8.19656526,4173.8,4173.7,15.04620001]
[1759232771680,7.67889822,4173.8,4173.7,15.04620001]
[1759232775466,5.283,4173.8,4173.7,15.04620001]
[1759232775660,7.67889822,4173.8,4173.7,15.04620001]
[1759232775862,7.67889822,4173.8,4173.7,14.95830001]
[1759232777365,7.67889822,4173.8,4173.7,0.45830001]
[1759232777862,7.67889822,4173.8,4173.7,14.95830001]
[1759232779992,7.67889822,4173.8,4173.7,14.50000001]
[1759232780694,8.39962326,4173.8,4173.7,14.50000001]
[1759232786122,12.881964,4173.8,4173.7,1e-08]
[1759232786274,15.84435781,4173.8,4173.7,1e-08]
[1759232793024,15.40165781,4173.8,4173.7,1e-08]
[1759232793414,10.71639045,4173.8,4173.7,1e-08]
[1759232793614,10.46989045,4173.8,4173.7,1e-08]
[1759232793815,0.84176487,4173.8,4173.7,1e-08]
[1759232794024,0.121,4173.8,4173.7,0.55370001]
[1759232794603,2.51689822,4173.8,4173.7,0.55370001]
[1759232794812,0.121,4173.8,4173.7,0.55370001]
[1759232795612,0.121,4173.8,4173.7,1e-08]
[1759232795816,2.51689822,4173.8,4173.7,0.55370001]
[1759232796634,2.51689822,4173.8,4173.7,15.05370001]
[1759232797128,2.51689822,4173.8,4173.7,14.50000001]
[1759232797708,0.121,4173.8,4173.7,14.96580001]
[1759232797901,2.51689822,4173.8,4173.7,14.96580001]
[1759232798500,2.51689822,4173.8,4173.7,14.50000001]
[1759232799829,7.20216558,4173.8,4173.7,14.50000001]
[1759232800631,2.51689822,4173.8,4173.7,14.50000001]
[1759232806211,2.75599822,4173.8,4173.7,14.50000001]
[1759232806645,2.51689822,4173.8,4173.7,14.50000001]
[1759232807452,2.75599822,4173.8,4173.7,14.50000001]
[1759232808543,2.51689822,4173.8,4173.7,14.50000001]
[1759232812445,2.75599822,4173.8,4173.7,14.50000001]
[1759232816249,2.51689822,4173.8,4173.7,14.50000001]
[1759232817260,2.75599822,4173.8,4173.7,14.50000001]
[1759232819949,2.51689822,4173.8,4173.7,14.50000001]
[1759232820158,2.75599822,4173.8,4173.7,14.50000001]
[1759232820534,3.66619802,4173.8,4173.7,14.50000001]
[1759232820734,3.42709802,4173.8,4173.7,14.50000001]
[1759232821878,3.66619802,4173.8,4173.7,14.50000001]
[1759232822451,4.13669802,4173.8,4173.7,14.50000001]
[1759232823056,3.66619802,4173.8,4173.7,14.50000001]
[1759232823379,4.18419892,4173.8,4173.7,1e-08]
[1759232823542,5.37546379,4173.8,4173.7,1e-08]
[1759232824876,2.26996557,4173.8,4173.7,1e-08]
[1759232825079,3.23766309,4173.8,4173.7,1e-08]
[1759232825647,3.47676309,4173.8,4173.7,1e-08]
[1759232826265,3.23766309,4173.8,4173.7,1e-08]
[1759232826466,2.51689822,4173.8,4173.7,0.42850001]
[1759232826868,2.94539822,4173.8,4173.7,0.42850001]
[1759232827061,2.94539822,4173.8,4173.7,1e-08]
[1759232830661,5.70239822,4173.8,4173.7,1e-08]
[1759232832674,5.70239822,4173.8,4173.7,0.45120001]
[1759232832859,5.70239822,4173.8,4173.7,0.53910001]
[1759232833271,5.27389822,4173.8,4173.7,0.53910001]
[1759232833755,2.878,4173.8,4173.7,0.45120001]
[1759232833961,2.878,4173.8,4173.7,0.53910001]
[1759232834358,5.27389822,4173.8,4173.7,15.03910001]
[1759232834796,5.27289822,4173.8,4173.7,15.03910001]
[1759232835297,2.877,4173.8,4173.7,15.03910001]
[1759232835598,5.27289822,4173.8,4173.7,15.03910001]
[1759232835761,2.877,4173.8,4173.7,15.03910001]
[1759232836466,5.27289822,4173.8,4173.7,15.03910001]
[1759232836674,2.877,4173.8,4173.7,15.03910001]
[1759232837070,5.27289822,4173.8,4173.7,14.95120001]
[1759232837493,2.877,4173.8,4173.7,14.95120001]
[1759232838307,2.877,4173.8,4173.7,14.50000001]
[1759232838504,2.877,4173.8,4173.7,15.04590001]
[1759232840504,0.121,4173.8,4173.7,15.04590001]
[1759232841584,0.121,4173.8,4173.7,14.95800001]
[1759232841906,0.121,4173.8,4173.7,16.54190001]
[1759232846898,0.001,4173.8,4173.7,18.93785563]
[1759232851794,0.001,4173.8,4173.7,19.05785563]
[1759232853624,0.001,4173.8,4173.7,18.96995563]
[1759232853823,0.001,4173.8,4173.7,18.51195563]
[1759232854027,0.001,4173.8,4173.7,19.05785563]
[1759232855705,0.001,4173.8,4173.7,16.11600001]
[1759232856033,0.001,4173.8,4173.7,18.75000001]
[1759232856613,0.001,4173.8,4173.7,21.14595563]
[1759232857344,0.001,4173.8,4173.7,18.75000001]
[1759232857547,0.001,4173.8,4173.7,21.14595563]
[1759232858600,0.001,4173.8,4173.7,18.75000001]
[1759232858802,0.001,4173.8,4173.7,21.14595563]
[1759232859236,0.001,4173.8,4173.7,21.60395563]
[1759232861039,0.2345,4174.3,4173.8,2.39589474]
[1759232861240,0.12,4174.1,4174.0,2.39578342]
[1759232861523,0.12,4174.1,4174.0,5.14878342]
[1759232861716,0.12,4174.1,4174.0,2.753]
[1759232861912,0.001,4174.3,4174.0,5.14877898]
[1759232862247,0.2381,4174.3,4174.2,14.5]
[1759232862446,0.2381,4174.3,4174.2,16.2253]
[1759232863053,0.2381,4174.3,4174.2,16.71551914]
[1759232863546,0.2381,4174.3,4174.2,14.99021914]
[1759232863745,0.6783,4174.3,4174.2,14.99021914]
[1759232863929,0.6783,4174.3,4174.2,17.74321914]
[1759232864772,0.2381,4174.3,4174.2,17.74321914]
[1759232864975,0.6783,4174.3,4174.2,17.74321914]
[1759232866678,0.2381,4174.3,4174.2,17.74321914]
[1759232867048,0.6783,4174.3,4174.2,17.74321914]
[1759232867751,0.001,4174.3,4174.2,17.74321914]
[1759232867947,0.001,4174.3,4174.2,19.95794105]
[1759232868146,0.001,4174.3,4174.2,22.35360968]
[1759232871065,0.001,4174.3,4174.2,22.44150968]
[1759232871368,0.001,4174.3,4174.2,22.56150968]
[1759232872446,0.001,4174.3,4174.2,22.47360968]
[1759232876959,0.001,4174.3,4174.2,22.56150968]
[1759232877440,0.001,4174.3,4174.2,22.47360968]
[1759232877644,0.001,4174.3,4174.2,22.56150968]
[1759232878681,0.001,4174.3,4174.2,23.35350968]
[1759232879259,0.001,4174.3,4174.2,25.75350968]
[1759232882859,0.001,4174.7,4174.6,2.39543908]
[1759232883086,0.001,4174.7,4174.6,8.46373423]
[1759232883260,0.001,4174.7,4174.6,8.99203423]
[1759232883456,0.001,4174.7,4174.6,23.58807276]
[1759232884680,0.001,4174.7,4174.6,24.38007276]
[1759232887169,0.001,4174.7,4174.6,24.29217276]
[1759232887377,0.001,4174.7,4174.6,24.38007276]
[1759232890114,0.001,4175.7,4175.6,0.792]
[1759232890295,0.001,4175.7,4175.6,8.3358654]
[1759232890488,0.001,4175.7,4175.6,9.52894589]
[1759232890689,0.001,4175.7,4175.6,24.47014589]
[1759232893098,0.001,4175.7,4175.6,24.91164589]
[1759232893613,0.001,4175.7,4175.6,24.47014589]
[1759232893781,0.001,4175.7,4175.6,24.91164589]
[1759232894689,0.001,4175.7,4175.6,24.99954589]
[1759232895688,0.001,4176.2,4175.6,24.99954589]
[1759232895689,1e-08,4176.2,4176.1,3.18657867]
[1759232895900,1e-08,4176.2,4176.1,6.85270177]
[1759232896311,1e-08,4176.2,4176.1,21.80410177]
[1759232896687,1e-08,4176.2,4176.1,22.23960177]
[1759232897114,1e-08,4176.2,4176.1,24.63960177]
[1759232897320,1e-08,4176.2,4176.1,24.72750177]
[1759232897617,1e-08,4176.2,4176.1,24.63960177]
[1759232898317,1e-08,4176.2,4176.1,24.72750177]
[1759232898495,1e-08,4176.2,4176.1,21.97950177]
[1759232898696,1e-08,4176.2,4176.1,24.63960177]
[1759232902944,0.001,4176.7,4176.6,3.186292]
[1759232903110,2.39286625,4179.1,4177.8,0.792]
[1759232903309,2.39292428,4179.0,4178.2,0.792]
[1759232903612,2.39297824,4178.9,4178.4,0.792]
[1759232903811,0.7121,4178.8,4178.4,0.792]
[1759232904035,2.39318795,4178.6,4178.1,0.792]
[1759232904214,0.7121,4178.5,4178.1,0.792]
[1759232904422,0.7121,4178.5,4178.4,14.5]
[1759232904734,3.1053033,4178.5,4178.4,14.5]
[1759232904934,0.7121,4178.5,4178.4,14.5]
[1759232905124,0.83722798,4178.5,4178.4,14.5]
[1759232907037,0.7121,4178.5,4178.4,15.292]
[1759232908134,3.1053033,4178.5,4178.4,15.292]
[1759232908646,0.7121,4178.5,4178.4,15.292]
[1759232908814,3.1053033,4178.5,4178.4,14.5]
[1759232909648,0.7121,4178.5,4178.4,14.5]
[1759232909850,3.1053033,4178.5,4178.4,14.5]
[1759232910324,0.7121,4178.5,4178.4,14.5]
[1759232912942,0.8321,4178.5,4178.4,14.5]
[1759232913325,3.2253033,4178.5,4178.4,14.5]
[1759232914254,1.39393956,4178.5,4178.4,14.5]
[1759232914753,3.78714286,4178.5,4178.4,14.5]
[1759232915358,1.39393956,4178.5,4178.4,14.5]
[1759232915767,0.8321,4178.5,4178.4,14.5]
[1759232915933,3.2253033,4178.5,4178.4,14.5]
[1759232916540,0.8321,4178.5,4178.4,14.5]
[1759232916973,3.2253033,4178.5,4178.4,14.5]
[1759232917763,0.8321,4178.5,4178.4,14.5]
[1759232918343,3.2253033,4178.5,4178.4,14.5]
[1759232918540,3.7871391,4178.5,4178.4,14.5]
[1759232920642,3.7881391,4178.5,4178.4,14.5]
[1759232923589,1.3949358,4178.5,4178.4,14.5]
[1759232923790,0.8331,4178.5,4178.4,14.5]
[1759232923968,3.2263033,4178.5,4178.4,14.5]
[1759232924376,2.7625033,4178.5,4178.4,14.5]
[1759232924777,0.3693,4178.5,4178.4,14.5]
[1759232925186,2.7625033,4178.5,4178.4,14.5]
[1759232925783,3.2042033,4178.5,4178.4,14.5]
[1759232932884,5.9492033,4178.5,4178.4,14.5]
[1759232933085,3.556,4178.5,4178.4,14.5]
[1759232933286,3.1143,4178.5,4178.4,14.5]
[1759232933592,5.5075033,4178.5,4178.4,14.5]
[1759232933890,3.1143,4178.5,4178.4,14.5]
[1759232934091,2.866,4178.5,4178.4,14.5]
[1759232934287,5.2592033,4178.5,4178.4,14.9599]
[1759232934511,5.2592033,4178.5,4178.4,14.5]
[1759232934715,5.4984033,4178.5,4178.4,14.5]
[1759232935289,5.2592033,4178.5,4178.4,14.5]
[1759232935810,2.866,4178.5,4178.4,14.5]
[1759232937412,0.121,4178.5,4178.4,14.5]
[1759232937614,0.121,4178.5,4178.4,15.292]
[1759232938624,2.7534033,4178.5,4178.4,14.5]
[1759232938827,2.39349373,4178.0,4177.4,2.744]
[1759232939027,2.39349373,4178.0,4177.5,2.744]
[1759232939028,0.6809,4177.9,4177.5,2.744]
[1759232939324,0.2392,4177.8,4177.6,0.792]
[1759232939806,0.2392,4177.8,4177.7,14.5]
[1759232940008,2.83530428,4177.8,4177.7,14.5]
[1759232940212,8.78025236,4177.8,4177.7,14.5]
[1759232940386,9.01945236,4177.8,4177.7,14.5]
[1759232940989,9.53702516,4177.8,4177.7,14.5]
[1759232941213,9.53661,4177.8,4177.7,14.5]
[1759232941417,2.39398641,4177.2,4177.0,2.744]
[1759232941643,2.39400541,4177.1,4177.0,2.744]
[1759232941801,2.39400541,4177.1,4177.0,18.036]
[1759232942118,2.39396565,4177.2,4177.0,15.292]
[1759232942329,2.39396565,4177.2,4176.6,0.4619]
[1759232942330,2.3941058,4177.0,4176.6,0.002]
[1759232942491,2.3941058,4177.0,4176.8,0.792]
[1759232942909,0.2392,4177.0,4176.8,0.792]
[1759232943292,2.63320823,4177.1,4176.8,0.792]
[1759232943485,2.39406596,4177.0,4176.8,0.792]
[1759232943682,3.07496596,4177.0,4176.7,14.5]
[1759232943883,2.39417736,4176.8,4176.7,15.292]
[1759232944237,3.07507736,4176.8,4176.7,14.5]
[1759232944727,2.63337736,4176.8,4176.7,14.5]
[1759232944891,3.07507736,4176.8,4176.7,14.5]
[1759232945284,0.2392,4176.8,4176.7,14.5]
[1759232945626,2.39406846,4177.0,4176.7,14.5]
[1759232945831,1.26525033,4177.8,4176.8,1.2519]
[1759232946137,1.26525033,4177.8,4177.0,0.792]
[1759232946138,2.39379392,4177.5,4177.0,0.792]
[1759232946327,0.2392,4178.2,4177.2,0.792]
[1759232946531,5.13743242,4178.1,4177.3,3.2918]
[1759232946737,2.3934897,4178.0,4177.4,0.4599]
[1759232946951,2.744,4178.1,4177.4,0.4599]
[1759232947247,2.39354761,4177.9,4177.4,0.4599]
[1759232947455,2.3934399,4178.1,4177.6,0.792]
[1759232947616,5.1374399,4178.1,4177.7,0.4599]
[1759232947817,2.744,4178.1,4177.7,0.4599]
[1759232948350,5.13743367,4178.1,4177.8,14.5]
[1759232948739,0.12,4177.9,4177.8,14.5]
[1759232953266,0.12,4177.9,4177.8,14.9739]
[1759232954232,0.12,4177.9,4177.8,14.5]
[1759232956836,0.12,4177.9,4173.7,1.17303048]
[1759232956837,8.50058191,4177.9,4176.6,0.002]
[1759232957068,2.39381673,4177.5,4176.7,2.744]
[1759232957265,0.2299,4177.4,4176.8,14.5]
[1759232957454,2.3939053,4177.3,4176.8,14.5]
[1759232957658,3.0828541,4177.2,4176.8,17.244]
[1759232957954,2.62368187,4177.5,4176.9,1.2202]
[1759232958158,2.62368187,4177.5,4176.9,2.9448]
[1759232958467,2.39383804,4177.4,4176.9,2.9448]
[1759232958766,2.62368979,4177.5,4176.9,2.9448]
[1759232958970,2.744,4177.6,4177.1,0.792]
[1759232959171,5.36763259,4177.6,4177.1,1.2202]
[1759232959369,0.2299,4177.5,4177.1,1.2202]
[1759232959962,2.744,4177.6,4177.2,0.4282]
[1759232960171,2.744,4177.6,4177.1,3.05907601]
[1759232960172,0.001,4177.5,4177.3,1.2202]
[1759232960547,0.001,4177.5,4177.2,0.792]
[1759232962656,0.001,4177.5,4177.2,3.536]
[1759232962861,0.001,4177.5,4177.3,0.4282]
[1759232963488,0.001,4177.5,4177.4,15.292]
[1759232963694,0.001,4177.5,4177.4,15.7202]
[1759232964097,0.001,4177.5,4177.4,18.11403348]
[1759232964590,0.001,4177.5,4177.4,20.94593348]
[1759232964993,0.001,4177.5,4177.4,20.85803348]
[1759232965188,0.001,4177.5,4177.4,23.25533891]
[1759232969513,0.001,4177.5,4177.4,22.82713891]
[1759232971215,0.001,4177.5,4177.4,23.25533891]
[1759232971807,0.001,4177.5,4177.4,22.82713891]
[1759232974406,0.001,4177.5,4177.4,23.25533891]
[1759232974922,0.001,4177.5,4177.4,23.34323891]
[1759232975516,0.001,4177.5,4177.4,23.37533891]
[1759232975697,0.001,4177.5,4177.4,23.46323891]
[1759232976223,0.001,4177.5,4177.4,23.37533891]
[1759232976924,0.001,4177.5,4177.4,23.46323891]
[1759232979525,0.001,4177.5,4177.4,23.37533891]
[1759232979823,0.001,4177.5,4177.4,23.46323891]
[1759232980423,0.001,4177.5,4177.4,22.94713891]
[1759232980623,0.2309,4177.5,4177.4,22.82613891]
[1759232980820,0.6899,4177.5,4177.4,22.82613891]
[1759232981386,0.2309,4177.5,4177.4,22.82613891]
[1759232981813,0.001,4177.5,4177.4,22.82613891]
[1759232982390,0.001,4177.5,4177.4,23.40083891]
[1759232982590,0.001,4177.5,4177.4,23.48873891]
[1759232983016,0.001,4177.5,4177.4,25.88873891]
[1759232987705,0.001,4177.5,4177.4,25.80083891]
[1759232987900,0.001,4177.5,4177.4,22.60313891]
[1759232988105,0.2282,4177.5,4177.4,25.34513891]